fUST/lending_fUST_20250223
["ID","MTS","AMOUNT","RATE_DAILY","PERIOD"]
[354130661,1740265847236,-216.323,0.00014949,2]
[354130662,1740265847247,-151.0,0.00015,2]
[354130663,1740265847258,-527.71,0.00015013,2]
[354130664,1740265847267,-1003.77,0.00015013,2]
[354130665,1740265847277,-1988.89,0.00015013,2]
[354130666,1740265847286,-997.33,0.00015013,2]
[354130667,1740265847296,-562.81,0.00015013,2]
[354130668,1740265847305,-500.0,0.00015013,2]
[354130669,1740265847315,-427.06,0.00015013,2]
[354130670,1740265847325,-950.99,0.00015013,2]
[354130671,1740265847335,-500.0,0.00015013,2]
[354130672,1740265847346,-500.0,0.00015013,2]
[354130673,1740265847356,-1341.9,0.00015013,2]
[354130674,1740265847365,-680.5,0.00015013,2]
[354130675,1740265847375,-3994.83,0.00015013,2]
[354130676,1740265847387,-500.0,0.00015013,2]
[354130677,1740265847396,-2967.00295324,0.00015013,2]
[354130678,1740265847408,-1004.25000015,0.00015013,2]
[354130679,1740265847659,-297.49,0.00010959,2]
[354130680,1740265847668,-715.55,0.00014027,2]
[354130681,1740265847677,-715.55,0.00014109,2]
[354130682,1740265847687,-715.55,0.00014191,2]
[354130683,1740265847696,-715.55,0.00014273,2]
[354130684,1740265847705,-715.55,0.00014356,2]
[354130685,1740265847714,-715.55,0.00014438,2]
[354130686,1740265847723,-715.55,0.0001452,2]
[354130687,1740265847732,-715.55,0.00014602,2]
[354130688,1740265847742,-715.55,0.00014684,2]
[354130689,1740265847751,-715.55,0.00014767,2]
[354130690,1740265847760,-715.55,0.00014849,2]
[354130691,1740265847770,-715.55,0.00014931,2]
[354130692,1740265847779,-7467.94704661,0.00015013,2]
[354130693,1740265847789,-808.48,0.00015013,2]
[354130694,1740265847799,-573.22,0.00015013,2]
[354130695,1740265847808,-640.03,0.00015013,2]
[354130696,1740265847818,-1058.48,0.00015013,2]
[354130697,1740265847827,-588.8,0.00015013,2]
[354130698,1740265847837,-3988.29,0.00015013,2]
[354130699,1740265847846,-715.55,0.00015013,2]
[354130700,1740265847857,-527.71,0.00015095,2]
[354130701,1740265847867,-1003.77,0.00015095,2]
[354130702,1740265847877,-1264.77878438,0.00015095,2]
[354130703,1740265847976,-724.11121562,0.00015095,2]
[354130704,1740265847986,-997.33,0.00015095,2]
[354130705,1740265847997,-562.81,0.00015095,2]
[354130706,1740265848007,-500.0,0.00015095,2]
[354130707,1740265848016,-950.99,0.00015095,2]
[354130708,1740265848026,-500.0,0.00015095,2]
[354130709,1740265848035,-500.0,0.00015095,2]
[354130710,1740265848044,-1341.9,0.00015095,2]
[354130711,1740265848054,-680.5,0.00015095,2]
[354130712,1740265848075,-3994.83,0.00015095,2]
[354130713,1740265848086,-500.0,0.00015095,2]
[354130714,1740265848096,-11439.2,0.00015095,2]
[354130715,1740265848107,-808.48,0.00015095,2]
[354130716,1740265848116,-573.22,0.00015095,2]
[354130717,1740265848126,-640.03,0.00015095,2]
[354130718,1740265848136,-1058.48,0.00015095,2]
[354130719,1740265848146,-588.8,0.00015095,2]
[354130720,1740265848156,-3988.29,0.00015095,2]
[354130721,1740265848166,-715.55,0.00015095,2]
[354130722,1740265848176,-151.0,0.000151,2]
[354130723,1740265848187,-1003.77,0.00015178,2]
[354130724,1740265848197,-1988.89,0.00015178,2]
[354130725,1740265848207,-997.33,0.00015178,2]
[354130726,1740265848217,-562.81,0.00015178,2]
[354130727,1740265848227,-500.0,0.00015178,2]
[354130728,1740265848237,-950.99,0.00015178,2]
[354130729,1740265848247,-500.0,0.00015178,2]
[354130730,1740265848256,-500.0,0.00015178,2]
[354130731,1740265848266,-1341.9,0.00015178,2]
[354130732,1740265848275,-680.5,0.00015178,2]
[354130733,1740265848285,-3994.83,0.00015178,2]
[354130734,1740265848294,-500.0,0.00015178,2]
[354130735,1740265848303,-11439.2,0.00015178,2]
[354130736,1740265848314,-808.48,0.00015178,2]
[354130737,1740265848323,-573.22,0.00015178,2]
[354130738,1740265848333,-640.03,0.00015178,2]
[354130739,1740265848342,-1058.48,0.00015178,2]
[354130740,1740265848352,-588.8,0.00015178,2]
[354130741,1740265848362,-3988.29,0.00015178,2]
[354130742,1740265848371,-715.55,0.00015178,2]
[354130743,1740265848381,-1500.0,0.00015222,2]
[354130744,1740265848391,-1003.77,0.0001526,2]
[354130745,1740265848401,-1988.89,0.0001526,2]
[354130746,1740265848411,-997.33,0.0001526,2]
[354130747,1740265848421,-562.81,0.0001526,2]
[354130748,1740265848431,-500.0,0.0001526,2]
[354130749,1740265848442,-950.99,0.0001526,2]
[354130750,1740265848452,-500.0,0.0001526,2]
[354130751,1740265848462,-500.0,0.0001526,2]
[354130752,1740265848472,-1341.9,0.0001526,2]
[354130753,1740265848481,-680.5,0.0001526,2]
[354130754,1740265848491,-3994.83,0.0001526,2]
[354130755,1740265848500,-500.0,0.0001526,2]
[354130756,1740265848510,-11439.2,0.0001526,2]
[354130757,1740265848520,-808.48,0.0001526,2]
[354130758,1740265848529,-573.22,0.0001526,2]
[354130759,1740265848538,-640.03,0.0001526,2]
[354130760,1740265848548,-1058.48,0.0001526,2]
[354130761,1740265848558,-588.8,0.0001526,2]
[354130762,1740265848567,-3988.29,0.0001526,2]
[354130763,1740265848577,-715.55,0.0001526,2]
[354130764,1740265848587,-1003.77,0.00015342,2]
[354130765,1740265848597,-1988.89,0.00015342,2]
[354130766,1740265848607,-997.33,0.00015342,2]
[354130767,1740265848617,-562.81,0.00015342,2]
[354130768,1740265848626,-500.0,0.00015342,2]
[354130769,1740265848637,-950.99,0.00015342,2]
[354130770,1740265848647,-500.0,0.00015342,2]
[354130771,1740265848658,-500.0,0.00015342,2]
[354130772,1740265848667,-1341.9,0.00015342,2]
[354130773,1740265848677,-680.5,0.00015342,2]
[354130774,1740265848686,-3994.83,0.00015342,2]
[354130775,1740265848696,-500.0,0.00015342,2]
[354130776,1740265848706,-11439.2,0.00015342,2]
[354130777,1740265848716,-808.48,0.00015342,2]
[354130778,1740265848726,-573.22,0.00015342,2]
[354130779,1740265848735,-640.03,0.00015342,2]
[354130780,1740265848745,-1058.48,0.00015342,2]
[354130781,1740265848754,-588.8,0.00015342,2]
[354130782,1740265848762,-3988.29,0.00015342,2]
[354130783,1740265848771,-715.55,0.00015342,2]
[354130784,1740265848781,-151.0,0.000154,2]
[354130785,1740265848790,-1003.77,0.00015424,2]
[354130786,1740265848800,-1988.89,0.00015424,2]
[354130787,1740265848810,-997.33,0.00015424,2]
[354130788,1740265848820,-562.81,0.00015424,2]
[354130789,1740265848829,-307.43,0.00015424,2]
[354130790,1740265848839,-950.99,0.00015424,2]
[354130791,1740265848849,-500.0,0.00015424,2]
[354130792,1740265848858,-500.0,0.00015424,2]
[354130793,1740265848870,-1341.9,0.00015424,2]
[354130794,1740265848879,-680.5,0.00015424,2]
[354130795,1740265848888,-3994.83,0.00015424,2]
[354130796,1740265848898,-500.0,0.00015424,2]
[354130797,1740265848907,-11439.2,0.00015424,2]
[354130798,1740265848922,-808.48,0.00015424,2]
[354130799,1740265848931,-573.22,0.00015424,2]
[354130800,1740265848941,-640.03,0.00015424,2]
[354130801,1740265848951,-1058.48,0.00015424,2]
[354130802,1740265848962,-588.8,0.00015424,2]
[354130803,1740265848971,-3988.29,0.00015424,2]
[354130804,1740265848980,-715.55,0.00015424,2]
[354130805,1740265848991,-1003.77,0.00015506,2]
[354130806,1740265849001,-1988.89,0.00015506,2]
[354130807,1740265849011,-997.33,0.00015506,2]
[354130808,1740265849020,-562.81,0.00015506,2]
[354130809,1740265849030,-950.99,0.00015506,2]
[354130810,1740265849040,-403.77,0.00015506,2]
[354130811,1740265849050,-376.24,0.00015506,2]
[354130812,1740265849059,-1341.9,0.00015506,2]
[354130813,1740265849069,-680.5,0.00015506,2]
[354130814,1740265849079,-3994.83,0.00015506,2]
[354130815,1740265849089,-264.38,0.00015506,2]
[354130816,1740265849099,-11439.2,0.00015506,2]
[354130817,1740265849109,-808.48,0.00015506,2]
[354130818,1740265849119,-573.22,0.00015506,2]
[354130819,1740265849128,-640.03,0.00015506,2]
[354130820,1740265849139,-1058.48,0.00015506,2]
[354130821,1740265849149,-588.8,0.00015506,2]
[354130822,1740265849159,-3988.29,0.00015506,2]
[354130823,1740265849168,-715.55,0.00015506,2]
[354130824,1740265849178,-1003.84,0.00015589,2]
[354130825,1740265849188,-1988.94,0.00015589,2]
[354130826,1740265849198,-997.33,0.00015589,2]
[354130827,1740265849207,-562.96,0.00015589,2]
[354130828,1740265849217,-951.14643346,0.00015589,2]
[354130829,1740265849227,-1341.97,0.00015589,2]
[354130830,1740265849236,-680.6,0.00015589,2]
[354130831,1740265849246,-3995.01,0.00015589,2]
[354130832,1740265849255,-11439.41093878,0.00015589,2]
[354130833,1740265849267,-808.6772369,0.00015589,2]
[354130834,1740265849276,-573.22,0.00015589,2]
[354130835,1740265849286,-640.06484352,0.00015589,2]
[354130836,1740265849297,-1058.55,0.00015589,2]
[354130837,1740265849307,-589.01005938,0.00015589,2]
[354130838,1740265849317,-3988.4494,0.00015589,2]
[354130839,1740265849327,-715.72,0.00015589,2]
[354130840,1740265849337,-396.0,0.00015687,2]
[354130841,1740265849347,-151.0,0.000157,2]
[354130842,1740265849357,-266.54922,0.00015775,2]
[354130843,1740265849366,-900.0,0.00015808,2]
[354130844,1740265849376,-600.0,0.0001584,2]
[354130845,1740265849386,-168.26106218,0.00015918,2]
[354130846,1740265849395,-151.0,0.00016,2]
[354130847,1740265849405,-600.0,0.00016005,2]
[354130848,1740265849416,-185.0341079,0.00016163,2]
[354130849,1740265849426,-499.0,0.00016164,2]
[354130850,1740265849435,-600.0,0.0001617,2]
[354130851,1740265849445,-151.0,0.000162,2]
[354130852,1740265849454,-1373.98822255,0.00016284,2]
[354130853,1740265849465,-435.8689266,0.00016301,2]
[354130854,1740265849475,-600.0,0.00016335,2]
[354130855,1740265849484,-12675.73538758,0.00016338,2]
[354130856,1740265849495,-3000.0,0.000164,2]
[354130857,1740265849504,-152.27751319,0.000164,2]
[354130858,1740265849514,-152.27751319,0.000164,2]
[354130859,1740265849524,-152.27751319,0.000164,2]
[354130860,1740265849534,-152.27751319,0.000164,2]
[354130861,1740265849543,-152.27751319,0.000164,2]
[354130862,1740265849553,-152.27751319,0.000164,2]
[354130863,1740265849562,-152.27751319,0.000164,2]
[354130864,1740265849572,-152.27751319,0.000164,2]
[354130865,1740265849582,-152.27751319,0.000164,2]
[354130866,1740265849592,-152.27751319,0.000164,2]
[354130867,1740265849601,-152.27751319,0.000164,2]
[354130868,1740265849611,-152.27751319,0.000164,2]
[354130869,1740265849620,-152.27751319,0.000164,2]
[354130870,1740265849629,-152.27751319,0.000164,2]
[354130871,1740265849639,-152.27751319,0.000164,2]
[354130872,1740265849648,-152.27751319,0.000164,2]
[354130873,1740265849658,-152.27751319,0.000164,2]
[354130874,1740265849667,-152.27,0.000164,2]
[354130875,1740265849677,-5846.67763461,0.000164,2]
[354130876,1740265849687,-150.0,0.00016431,2]
[354130877,1740265849696,-538.0,0.00016431,2]
[354130878,1740265849706,-1970.0,0.00016431,2]
[354130879,1740265849821,-2287.0,0.00016431,2]
[354130880,1740265849831,-500.0,0.00016473,2]
[354130881,1740265849840,-445.94572311,0.0001649,2]
[354130882,1740265849850,-14147.74624826,0.000165,5]
[354130883,1740265849859,-5628.57959304,0.000165,5]
[354130884,1740265849870,-220209.98378179,0.000165,8]
[354130885,1740265849884,-812575.13541609,0.000165,8]
[354130886,1740265849897,-3148.18315918,0.000165,8]
[354130887,1740265850031,-500.0,0.00013698,2]
[354130888,1740265850040,-528.23,0.0001378,2]
[354130889,1740265850050,-6072.59544555,0.000165,8]
[354130890,1740265850061,-1923.5142,0.000165,8]
[354130891,1740265850073,-5627.32819225,0.000165,8]
[354130892,1740265850085,-27199.999999,0.000165,8]
[354130893,1740265850097,-4964.44160594,0.000165,8]
[354130894,1740265850108,-470.20306775,0.000165,8]
[354130895,1740265850120,-4363.53496598,0.000165,8]
[354130901,1740266578407,-150.0,9.041e-05,2]
[354130902,1740266580629,-106.16314,9.041e-05,2]
[354130904,1740266913244,1098.07016083,0.00018204,90]
[354130952,1740267032841,-277.06162581,0.0001,2]
[354130954,1740267032850,-300.0,0.0001,2]
[354130955,1740267032860,-300.0,0.00010958,2]
[354130956,1740267032871,-21.41837419,0.00010959,2]
[354130957,1740267032884,-571.76162581,0.00010959,2]
[354130958,1740267032893,-494.32,0.00010959,2]
[354130959,1740267032903,-411.93,0.00010959,2]
[354130960,1740267032912,-343.28,0.00010959,2]
[354130961,1740267032923,-286.06,0.00010959,2]
[354130962,1740267032932,-238.39,0.00010959,2]
[354130963,1740267032941,-198.65,0.00010959,2]
[354130964,1740267032951,-165.55,0.00010959,2]
[354130965,1740267032959,-827.75,0.00010959,2]
[354130966,1740267032968,-6569.0,0.00011,2]
[354130967,1740267032977,-3284.0,0.00011,2]
[354130968,1740267032986,-3284.0,0.00011,2]
[354130969,1740267032995,-3284.0,0.00011,2]
[354130970,1740267033005,-3284.0,0.00011,2]
[354130971,1740267033014,-420.0,0.00012042,2]
[354130972,1740267033023,-208.58881702,0.00012318,2]
[354130973,1740267033033,-463.0,0.0001285,2]
[354130974,1740267033043,-700.0,0.00013068,2]
[354130975,1740267033052,-587.0,0.00013233,2]
[354130976,1740267033061,-500.0,0.00013673,2]
[354130977,1740267033071,-151.0,0.0001369,2]
[354130978,1740267033081,-500.0,0.00013698,2]
[354130979,1740267033091,-443.38722618,0.00013698,2]
[354130980,1740267033102,-500.0,0.00013698,2]
[354130981,1740267033111,-501.17098001,0.00013698,2]
[354130982,1740267033121,-552.52656968,0.00013698,2]
[354130983,1740267033131,-500.0,0.00013698,2]
[354130984,1740267033142,-500.0,0.00013698,2]
[354130985,1740267033152,-500.0,0.00013698,2]
[354130986,1740267033163,-515.67555218,0.00013698,2]
[354130987,1740267033173,-500.0,0.00013698,2]
[354130988,1740267033184,-500.0,0.00013698,2]
[354130989,1740267033194,-500.0,0.00013698,2]
[354130990,1740267033204,-500.0,0.00013698,2]
[354130991,1740267033214,-500.0,0.00013698,2]
[354130992,1740267033224,-352.50764116,0.00013698,2]
[354130993,1740267033235,-500.0,0.00013698,2]
[354130994,1740267033245,-500.0,0.00013698,2]
[354130995,1740267033255,-500.0,0.00013698,2]
[354130996,1740267033265,-500.0,0.00013698,2]
[354130997,1740267033275,-500.0,0.00013698,2]
[354130998,1740267033284,-500.0,0.00013698,2]
[354130999,1740267033293,-500.0,0.00013698,2]
[354131000,1740267033303,-636.46,0.00013698,2]
[354131001,1740267033313,-500.0,0.00013698,2]
[354131002,1740267033322,-500.0,0.00013698,2]
[354131003,1740267033332,-500.0,0.00013698,2]
[354131004,1740267033341,-500.0,0.00013698,2]
[354131005,1740267033351,-500.0,0.00013698,2]
[354131006,1740267033361,-500.0,0.00013698,2]
[354131007,1740267033371,-500.0,0.00013698,2]
[354131008,1740267033384,-533.75238592,0.00013698,2]
[354131009,1740267033393,-371.33958002,0.00013698,2]
[354131010,1740267033404,-500.0,0.00013698,2]
[354131011,1740267033413,-500.0,0.00013698,2]
[354131012,1740267033422,-500.0,0.00013698,2]
[354131013,1740267033432,-581.84,0.00013698,2]
[354131014,1740267033443,-500.0,0.00013698,2]
[354131015,1740267033452,-500.0,0.00013698,2]
[354131016,1740267033462,-504.57787772,0.00013698,2]
[354131017,1740267033472,-506.37998842,0.00013698,2]
[354131018,1740267033481,-500.0,0.00013698,2]
[354131019,1740267033491,-500.0,0.00013698,2]
[354131020,1740267033501,-500.0,0.00013698,2]
[354131021,1740267033510,-500.0,0.00013698,2]
[354131022,1740267033520,-500.0,0.00013698,2]
[354131023,1740267033529,-500.0,0.00013698,2]
[354131024,1740267033539,-500.0,0.00013698,2]
[354131025,1740267033548,-500.0,0.00013698,2]
[354131026,1740267033558,-218.24491378,0.00013698,2]
[354131027,1740267033568,-500.0,0.00013698,2]
[354131028,1740267033577,-500.0,0.00013698,2]
[354131029,1740267033586,-500.0,0.00013698,2]
[354131030,1740267033596,-500.0,0.00013698,2]
[354131031,1740267033606,-502.51766207,0.00013698,2]
[354131032,1740267033615,-403.37732889,0.00013698,2]
[354131033,1740267033625,-500.0,0.00013698,2]
[354131034,1740267033634,-500.0,0.00013698,2]
[354131035,1740267033644,-500.0,0.00013698,2]
[354131036,1740267033654,-500.0,0.00013698,2]
[354131037,1740267033664,-500.0,0.00013698,2]
[354131038,1740267033673,-500.0,0.00013698,2]
[354131039,1740267033683,-500.0,0.00013698,2]
[354131040,1740267033693,-500.0,0.00013698,2]
[354131041,1740267033703,-500.0,0.00013698,2]
[354131042,1740267033713,-500.0,0.00013698,2]
[354131043,1740267033723,-500.0,0.00013698,2]
[354131044,1740267033733,-500.0,0.00013698,2]
[354131045,1740267033742,-500.0,0.00013698,2]
[354131046,1740267033752,-509.20042152,0.00013698,2]
[354131047,1740267033762,-500.0,0.00013698,2]
[354131048,1740267033772,-500.0,0.00013698,2]
[354131049,1740267033782,-646.42,0.00013698,2]
[354131050,1740267033792,-500.0,0.00013698,2]
[354131051,1740267033802,-500.0,0.00013698,2]
[354131052,1740267033812,-500.0,0.00013698,2]
[354131053,1740267033821,-500.0,0.00013698,2]
[354131054,1740267033831,-500.0,0.00013698,2]
[354131055,1740267033840,-500.0,0.00013698,2]
[354131056,1740267033850,-500.0,0.00013698,2]
[354131057,1740267033860,-500.0,0.00013698,2]
[354131058,1740267033870,-500.0,0.00013698,2]
[354131059,1740267033879,-500.0,0.00013698,2]
[354131060,1740267033889,-500.0,0.00013698,2]
[354131061,1740267033898,-500.0,0.00013698,2]
[354131062,1740267033908,-608.68,0.00013698,2]
[354131063,1740267033918,-500.0,0.00013698,2]
[354131064,1740267033928,-500.0,0.00013698,2]
[354131065,1740267033938,-500.0,0.00013698,2]
[354131066,1740267033948,-500.0,0.00013698,2]
[354131067,1740267033958,-500.0,0.00013698,2]
[354131068,1740267033969,-500.0,0.00013698,2]
[354131069,1740267033978,-500.0,0.00013698,2]
[354131070,1740267033987,-500.0,0.00013698,2]
[354131071,1740267033997,-515.91,0.00013698,2]
[354131072,1740267034006,-637.5,0.00013698,2]
[354131073,1740267034016,-500.0,0.00013698,2]
[354131074,1740267034025,-500.0,0.00013698,2]
[354131075,1740267034035,-500.0,0.00013698,2]
[354131076,1740267034045,-500.0,0.00013698,2]
[354131077,1740267034057,-500.0,0.00013698,2]
[354131078,1740267034067,-500.0,0.00013698,2]
[354131079,1740267034077,-500.0,0.00013698,2]
[354131080,1740267034087,-500.0,0.00013698,2]
[354131081,1740267034096,-517.26745547,0.00013698,2]
[354131082,1740267034106,-500.0,0.00013698,2]
[354131083,1740267034116,-639.57,0.00013698,2]
[354131084,1740267034125,-500.0,0.00013698,2]
[354131085,1740267034135,-500.0,0.00013698,2]
[354131086,1740267034144,-500.0,0.00013698,2]
[354131087,1740267034154,-500.0,0.00013698,2]
[354131088,1740267034163,-500.0,0.00013698,2]
[354131089,1740267034173,-500.0,0.00013698,2]
[354131090,1740267034182,-500.0,0.00013698,2]
[354131091,1740267034192,-500.0,0.00013698,2]
[354131092,1740267034201,-500.0,0.00013698,2]
[354131093,1740267034210,-500.0,0.00013698,2]
[354131094,1740267034220,-500.0,0.00013698,2]
[354131095,1740267034229,-520.1,0.00013698,2]
[354131096,1740267034239,-1000.0,0.00013698,2]
[354131097,1740267034248,-632.72305517,0.00013698,2]
[354131098,1740267034257,-500.0,0.00013698,2]
[354131099,1740267034267,-500.0,0.00013698,2]
[354131100,1740267034276,-500.0,0.00013698,2]
[354131101,1740267034285,-500.0,0.00013698,2]
[354131102,1740267034295,-361.09667314,0.00013698,2]
[354131103,1740267034304,-485.62694335,0.00013698,2]
[354131104,1740267034313,-500.0,0.00013698,2]
[354131105,1740267034323,-500.0,0.00013698,2]
[354131106,1740267034332,-500.0,0.00013698,2]
[354131107,1740267034341,-500.0,0.00013698,2]
[354131108,1740267034351,-500.0,0.00013698,2]
[354131109,1740267034362,-500.0,0.00013698,2]
[354131110,1740267034371,-500.0,0.00013698,2]
[354131111,1740267034385,-500.0,0.00013698,2]
[354131112,1740267034394,-500.0,0.00013698,2]
[354131113,1740267034404,-500.0,0.00013698,2]
[354131114,1740267034413,-500.0,0.00013698,2]
[354131115,1740267034424,-500.0,0.00013698,2]
[354131116,1740267034433,-500.0,0.00013698,2]
[354131117,1740267034442,-500.0,0.00013698,2]
[354131118,1740267034451,-500.0,0.00013698,2]
[354131119,1740267034460,-553.35952589,0.00013698,2]
[354131120,1740267034470,-511.91622594,0.00013698,2]
[354131121,1740267034479,-500.0,0.00013698,2]
[354131122,1740267034488,-500.0,0.00013698,2]
[354131123,1740267034498,-500.0,0.00013698,2]
[354131124,1740267034507,-500.0,0.00013698,2]
[354131125,1740267034516,-500.0,0.00013698,2]
[354131126,1740267034526,-500.0,0.00013698,2]
[354131127,1740267034536,-500.0,0.00013698,2]
[354131128,1740267034547,-500.0,0.00013698,2]
[354131129,1740267034557,-500.0,0.00013698,2]
[354131130,1740267034566,-1709.53,0.00013698,2]
[354131131,1740267034576,-500.0,0.00013698,2]
[354131132,1740267034586,-500.0,0.00013698,2]
[354131133,1740267034595,-500.0,0.00013698,2]
[354131134,1740267034605,-500.0,0.00013698,2]
[354131135,1740267034615,-500.0,0.00013698,2]
[354131136,1740267034624,-500.0,0.00013698,2]
[354131137,1740267034635,-500.0,0.00013698,2]
[354131138,1740267034645,-500.0,0.00013698,2]
[354131139,1740267034654,-500.0,0.00013698,2]
[354131140,1740267034663,-500.0,0.00013698,2]
[354131141,1740267034674,-501.02324578,0.00013698,2]
[354131142,1740267034683,-500.0,0.00013698,2]
[354131143,1740267034693,-500.0,0.00013698,2]
[354131144,1740267034702,-500.0,0.00013698,2]
[354131145,1740267034711,-634.26,0.00013698,2]
[354131146,1740267034720,-505.28212212,0.00013698,2]
[354131147,1740267034729,-500.99320311,0.00013698,2]
[354131148,1740267034739,-500.0,0.00013698,2]
[354131149,1740267034748,-500.0,0.00013698,2]
[354131150,1740267034757,-500.0,0.00013698,2]
[354131151,1740267034766,-500.0,0.00013698,2]
[354131152,1740267034775,-500.0,0.00013698,2]
[354131153,1740267034785,-500.0,0.00013698,2]
[354131154,1740267034795,-500.0,0.00013698,2]
[354131155,1740267034804,-406.44118837,0.00013698,2]
[354131156,1740267034813,-500.0,0.00013698,2]
[354131157,1740267034823,-500.0,0.00013698,2]
[354131158,1740267034832,-503.29641154,0.00013698,2]
[354131159,1740267034841,-188.41224194,0.00013698,2]
[354131160,1740267034851,-500.0,0.00013698,2]
[354131161,1740267034860,-500.0,0.00013698,2]
[354131162,1740267034871,-500.0,0.00013698,2]
[354131163,1740267034881,-500.0,0.00013698,2]
[354131164,1740267034890,-500.0,0.00013698,2]
[354131165,1740267034900,-501.16602888,0.00013698,2]
[354131166,1740267034910,-515.6339278,0.00013698,2]
[354131167,1740267034920,-500.0,0.00013698,2]
[354131168,1740267034930,-500.0,0.00013698,2]
[354131169,1740267034939,-500.0,0.00013698,2]
[354131170,1740267034948,-500.0,0.00013698,2]
[354131171,1740267034958,-500.0,0.00013698,2]
[354131172,1740267034967,-500.0,0.00013698,2]
[354131173,1740267034977,-500.0,0.00013698,2]
[354131174,1740267034986,-219.02584653,0.00013698,2]
[354131175,1740267034996,-500.0,0.00013698,2]
[354131176,1740267035005,-500.0,0.00013698,2]
[354131177,1740267035015,-18.07131452,0.00013698,2]
[354131178,1740267035171,-481.92868548,0.00013698,2]
[354131179,1740267035181,-500.0,0.00013698,2]
[354131180,1740267035190,-202.772737,0.00013699,2]
[354131181,1740267035200,-239.49,0.0001378,2]
[354131182,1740267035209,-485.22,0.0001378,2]
[354131183,1740267035219,-150.61,0.0001378,2]
[354131184,1740267035228,-268.64,0.0001378,2]
[354131185,1740267035237,-500.0,0.0001378,2]
[354131186,1740267035247,-500.0,0.0001378,2]
[354131187,1740267035257,-197.87,0.0001378,2]
[354131188,1740267035267,-212.79,0.0001378,2]
[354131189,1740267035276,-500.0,0.0001378,2]
[354131190,1740267035286,-350.25,0.0001378,2]
[354131191,1740267035295,-188.56,0.0001378,2]
[354131192,1740267035305,-500.0,0.0001378,2]
[354131193,1740267035314,-476.22,0.0001378,2]
[354131194,1740267035326,-362.29,0.0001378,2]
[354131195,1740267035344,-500.0,0.0001378,2]
[354131196,1740267035354,-500.0,0.0001378,2]
[354131197,1740267035363,-500.0,0.0001378,2]
[354131198,1740267035372,-500.0,0.0001378,2]
[354131199,1740267035385,-500.0,0.0001378,2]
[354131200,1740267035394,-500.0,0.0001378,2]
[354131201,1740267035403,-500.0,0.0001378,2]
[354131202,1740267035412,-500.0,0.0001378,2]
[354131203,1740267035422,-500.0,0.0001378,2]
[354131204,1740267035431,-1709.53,0.0001378,2]
[354131205,1740267035440,-500.0,0.0001378,2]
[354131206,1740267035450,-500.0,0.0001378,2]
[354131207,1740267035459,-634.26,0.0001378,2]
[354131208,1740267035469,-500.0,0.0001378,2]
[354131209,1740267035479,-500.0,0.0001378,2]
[354131210,1740267035488,-358.67,0.0001378,2]
[354131211,1740267035497,-500.0,0.0001378,2]
[354131212,1740267035506,-500.0,0.0001378,2]
[354131213,1740267035515,-377.81,0.00013863,2]
[354131214,1740267035525,-248.4,0.00013863,2]